fUSD/lending_fUSD_20240712
["ID","MTS","AMOUNT","RATE_DAILY","PERIOD"]
[331843877,1720792240925,-567.84,0.00013698,2]
[331843879,1720792240935,-30.19869965,0.00013698,2]
[331843883,1720792240964,-469.80130035,0.00013698,2]
[331843885,1720792240974,-98.19869965,0.00013698,2]
[331843889,1720792241007,-401.80130035,0.00013698,2]
[331843891,1720792241016,-376.15869965,0.00013698,2]
[331843893,1720792241028,-123.84130035,0.00013698,2]
[331843895,1720792241037,-128.6504543,0.00013698,2]
[331844139,1720792243338,-371.3495457,0.00013698,2]
[331844141,1720792243348,-500.0,0.00013698,2]
[331844143,1720792243358,-500.0,0.00013698,2]
[331844145,1720792243368,-500.0,0.00013698,2]
[331844147,1720792243377,-500.0,0.00013698,2]
[331844148,1720792243387,-500.0,0.00013698,2]
[331844150,1720792243397,-111.8608267,0.00013698,2]
[331844153,1720792243410,-388.1391733,0.00013698,2]
[331844155,1720792243420,-311.42066538,0.00013698,2]
[331844160,1720792243456,-727.66933462,0.00013698,2]
[331844162,1720792243466,-500.0,0.00013698,2]
[331844164,1720792243476,-164.56519395,0.00013698,2]
[331844166,1720792243485,-500.0,0.00013698,2]
[331844168,1720792243494,-500.0,0.00013698,2]
[331844170,1720792243504,-500.0,0.00013698,2]
[331844171,1720792243514,-500.0,0.00013698,2]
[331844173,1720792243523,-500.0,0.00013698,2]
[331844175,1720792243533,-500.0,0.00013698,2]
[331844177,1720792243542,-500.0,0.00013698,2]
[331844180,1720792243553,-500.0,0.00013698,2]
[331844182,1720792243562,-500.0,0.00013698,2]
[331844184,1720792243571,-500.0,0.00013698,2]
[331844186,1720792243580,-500.0,0.00013698,2]
[331844188,1720792243589,-858.9,0.00013698,2]
[331844190,1720792243600,-500.0,0.00013698,2]
[331844192,1720792243608,-500.0,0.00013698,2]
[331844194,1720792243618,-541.89,0.00013698,2]
[331844196,1720792243627,-500.0,0.00013698,2]
[331844198,1720792243636,-635.49,0.00013698,2]
[331844200,1720792243645,-534.43,0.00013698,2]
[331844202,1720792243654,-500.0,0.00013698,2]
[331844204,1720792243664,-714.34,0.00013698,2]
[331844206,1720792243673,-500.0,0.00013698,2]
[331844208,1720792243683,-647.26,0.00013698,2]
[331844210,1720792243694,-692.67,0.00013698,2]
[331844212,1720792243703,-500.0,0.00013698,2]
[331844214,1720792243712,-624.47,0.00013698,2]
[331844216,1720792243721,-500.0,0.00013698,2]
[331844218,1720792243730,-500.0,0.00013698,2]
[331844219,1720792243739,-622.48,0.00013698,2]
[331844221,1720792243748,-597.86,0.00013698,2]
[331844223,1720792243758,-500.0,0.00013698,2]
[331844225,1720792243767,-782.37,0.00013698,2]
[331844227,1720792243777,-500.0,0.00013698,2]
[331844229,1720792243786,-500.0,0.00013698,2]
[331844231,1720792243795,-558.92,0.00013698,2]
[331844233,1720792243804,-500.0,0.00013698,2]
[331844235,1720792243813,-533.75,0.00013698,2]
[331844237,1720792243822,-619.14,0.00013698,2]
[331844238,1720792243832,-848.19,0.00013698,2]
[331844240,1720792243841,-500.0,0.00013698,2]
[331844242,1720792243850,-701.07,0.00013698,2]
[331844244,1720792243859,-500.0,0.00013698,2]
[331844246,1720792243869,-500.0,0.00013698,2]
[331844248,1720792243878,-500.0,0.00013698,2]
[331844250,1720792243890,-528.43,0.00013698,2]
[331844252,1720792243899,-500.0,0.00013698,2]
[331844254,1720792243909,-669.31,0.00013698,2]
[331844256,1720792243919,-500.0,0.00013698,2]
[331844258,1720792243929,-500.0,0.00013698,2]
[331844260,1720792243940,-500.0,0.00013698,2]
[331844262,1720792243950,-552.8,0.00013698,2]
[331844264,1720792243960,-1022.34,0.00013698,2]
[331844266,1720792243968,-500.0,0.00013698,2]
[331844268,1720792243977,-500.0,0.00013698,2]
[331844270,1720792243987,-500.0,0.00013698,2]
[331844271,1720792243996,-500.0,0.00013698,2]
[331844274,1720792244006,-500.0,0.00013698,2]
[331844275,1720792244015,-500.0,0.00013698,2]
[331844277,1720792244025,-237.12734919,0.00013698,2]
[331844279,1720792244034,-500.0,0.00013698,2]
[331844281,1720792244043,-500.0,0.00013698,2]
[331844283,1720792244052,-500.0,0.00013698,2]
[331844284,1720792244062,-500.0,0.00013698,2]
[331844286,1720792244071,-743.78,0.00013698,2]
[331844288,1720792244080,-500.0,0.00013698,2]
[331844290,1720792244090,-500.0,0.00013698,2]
[331844292,1720792244099,-500.0,0.00013698,2]
[331844294,1720792244108,-500.0,0.00013698,2]
[331844296,1720792244117,-620.76,0.00013698,2]
[331844298,1720792244127,-500.0,0.00013698,2]
[331844300,1720792244137,-672.31,0.00013698,2]
[331844302,1720792244146,-500.0,0.00013698,2]
[331844304,1720792244155,-698.27,0.00013698,2]
[331844306,1720792244164,-500.0,0.00013698,2]
[331844308,1720792244173,-500.0,0.00013698,2]
[331844310,1720792244182,-500.0,0.00013698,2]
[331844311,1720792244192,-500.0,0.00013698,2]
[331844313,1720792244202,-500.0,0.00013698,2]
[331844315,1720792244211,-586.98,0.00013698,2]
[331844317,1720792244221,-500.0,0.00013698,2]
[331844319,1720792244231,-500.0,0.00013698,2]
[331844321,1720792244240,-500.0,0.00013698,2]
[331844323,1720792244249,-500.0,0.00013698,2]
[331844325,1720792244258,-1040.28,0.00013698,2]
[331844327,1720792244267,-500.0,0.00013698,2]
[331844329,1720792244277,-500.0,0.00013698,2]
[331844330,1720792244286,-411.77126464,0.00013698,2]
[331844332,1720792244295,-500.0,0.00013698,2]
[331844334,1720792244305,-684.64,0.00013698,2]
[331844336,1720792244315,-500.0,0.00013698,2]
[331844338,1720792244327,-730.04,0.00013698,2]
[331844340,1720792244337,-500.0,0.00013698,2]
[331844342,1720792244347,-345.35233421,0.00013698,2]
[331844344,1720792244356,-500.0,0.00013698,2]
[331844346,1720792244367,-697.04,0.00013698,2]
[331844348,1720792244376,-507.24,0.00013698,2]
[331844350,1720792244385,-756.9,0.00013698,2]
[331844352,1720792244396,-500.0,0.00013698,2]
[331844354,1720792244405,-741.31,0.00013698,2]
[331844355,1720792244415,-500.0,0.00013698,2]
[331844357,1720792244425,-500.0,0.00013698,2]
[331844358,1720792244437,-910.38,0.00013698,2]
[331844359,1720792244447,-500.0,0.00013698,2]
[331844360,1720792244457,-500.0,0.00013698,2]
[331844361,1720792244466,-564.36,0.00013698,2]
[331844362,1720792244476,-500.0,0.00013698,2]
[331844363,1720792244485,-500.0,0.00013698,2]
[331844364,1720792244495,-521.53,0.00013698,2]
[331844365,1720792244505,-558.18,0.00013698,2]
[331844366,1720792244514,-500.0,0.00013698,2]
[331844367,1720792244524,-500.0,0.00013698,2]
[331844368,1720792244533,-500.0,0.00013698,2]
[331844369,1720792244542,-567.77,0.00013698,2]
[331844391,1720792244764,-500.0,0.00013698,2]
[331844393,1720792244774,-934.5,0.00013698,2]
[331844395,1720792244784,-500.0,0.00013698,2]
[331844397,1720792244795,-568.82,0.00013698,2]
[331844399,1720792244804,-628.4,0.00013698,2]
[331844401,1720792244814,-680.44,0.00013698,2]
[331844404,1720792244825,-583.47,0.00013698,2]
[331844405,1720792244834,-500.0,0.00013698,2]
[331844407,1720792244844,-500.0,0.00013698,2]
[331844409,1720792244853,-500.0,0.00013698,2]
[331844411,1720792244862,-500.0,0.00013698,2]
[331844413,1720792244871,-500.0,0.00013698,2]
[331844415,1720792244880,-500.0,0.00013698,2]
[331844417,1720792244889,-926.09,0.00013698,2]
[331844419,1720792244899,-500.0,0.00013698,2]
[331844421,1720792244908,-500.0,0.00013698,2]
[331844423,1720792244917,-548.15,0.00013698,2]
[331844425,1720792244927,-500.0,0.00013698,2]
[331844427,1720792244937,-500.0,0.00013698,2]
[331844429,1720792244947,-500.0,0.00013698,2]
[331844431,1720792244955,-754.9,0.00013698,2]
[331844433,1720792244965,-514.88,0.00013698,2]
[331844435,1720792244974,-626.63,0.00013698,2]
[331844437,1720792244983,-500.0,0.00013698,2]
[331844439,1720792244992,-526.28,0.00013698,2]
[331844441,1720792245001,-500.0,0.00013698,2]
[331844443,1720792245011,-783.32,0.00013698,2]
[331844444,1720792245020,-696.56,0.00013698,2]
[331844446,1720792245030,-561.67,0.00013698,2]
[331844448,1720792245039,-500.0,0.00013698,2]
[331844450,1720792245048,-500.0,0.00013698,2]
[331844452,1720792245058,-541.38,0.00013698,2]
[331844454,1720792245067,-504.23,0.00013698,2]
[331844456,1720792245076,-573.99,0.00013698,2]
[331844458,1720792245085,-671.13,0.00013698,2]
[331844460,1720792245094,-500.0,0.00013698,2]
[331844462,1720792245103,-330.30651943,0.00013698,2]
[331844464,1720792245113,-950.8,0.00013698,2]
[331844466,1720792245122,-592.85,0.00013698,2]
[331844468,1720792245130,-520.5,0.00013698,2]
[331844470,1720792245140,-500.0,0.00013698,2]
[331844472,1720792245148,-500.0,0.00013698,2]
[331844474,1720792245157,-500.0,0.00013698,2]
[331844476,1720792245167,-794.26,0.00013698,2]
[331844478,1720792245176,-500.0,0.00013698,2]
[331844480,1720792245185,-500.0,0.00013698,2]
[331844482,1720792245197,-819.26,0.00013698,2]
[331844484,1720792245207,-500.0,0.00013698,2]
[331844486,1720792245216,-500.0,0.00013698,2]
[331844488,1720792245225,-500.0,0.00013698,2]
[331844490,1720792245235,-500.0,0.00013698,2]
[331844492,1720792245244,-500.0,0.00013698,2]
[331844494,1720792245253,-185.57220098,0.00013698,2]
[331844496,1720792245262,-500.0,0.00013698,2]
[331844498,1720792245272,-500.0,0.00013698,2]
[331844500,1720792245281,-500.0,0.00013698,2]
[331844502,1720792245290,-924.19,0.00013698,2]
[331844504,1720792245299,-500.0,0.00013698,2]
[331844506,1720792245309,-500.0,0.00013698,2]
[331844508,1720792245319,-500.0,0.00013698,2]
[331844510,1720792245332,-500.0,0.00013698,2]
[331844512,1720792245341,-765.42,0.00013698,2]
[331844513,1720792245350,-500.0,0.00013698,2]
[331844515,1720792245360,-500.0,0.00013698,2]
[331844517,1720792245370,-500.0,0.00013698,2]
[331844519,1720792245379,-500.0,0.00013698,2]
[331844521,1720792245390,-746.25,0.00013698,2]
[331844523,1720792245402,-500.0,0.00013698,2]
[331844525,1720792245413,-976.28,0.00013698,2]
[331844527,1720792245423,-500.0,0.00013698,2]
[331844529,1720792245433,-770.32,0.00013698,2]
[331844531,1720792245443,-795.28,0.00013698,2]
[331844533,1720792245452,-500.0,0.00013698,2]
[331844535,1720792245461,-797.46,0.00013698,2]
[331844537,1720792245470,-500.0,0.00013698,2]
[331844539,1720792245479,-500.0,0.00013698,2]
[331844541,1720792245488,-1361.99,0.00013698,2]
[331844543,1720792245498,-500.0,0.00013698,2]
[331844545,1720792245507,-500.0,0.00013698,2]
[331844547,1720792245516,-500.0,0.00013698,2]
[331844549,1720792245525,-1087.65,0.00013698,2]
[331844551,1720792245535,-500.0,0.00013698,2]
[331844553,1720792245544,-500.0,0.00013698,2]
[331844555,1720792245553,-887.95,0.00013698,2]
[331844557,1720792245562,-500.0,0.00013698,2]
[331844559,1720792245572,-500.0,0.00013698,2]
[331844561,1720792245581,-787.67,0.00013698,2]
[331844563,1720792245590,-654.25,0.00013698,2]
[331844565,1720792245599,-500.0,0.00013698,2]
[331844567,1720792245608,-1128.77,0.00013698,2]
[331844569,1720792245618,-500.0,0.00013698,2]
[331844571,1720792245627,-500.0,0.00013698,2]
[331844573,1720792245636,-842.09,0.00013698,2]
[331844575,1720792245645,-500.0,0.00013698,2]
[331844577,1720792245655,-500.0,0.00013698,2]
[331844579,1720792245664,-535.77,0.00013698,2]
[331844581,1720792245673,-500.0,0.00013698,2]
[331844583,1720792245682,-529.1,0.00013698,2]
[331844584,1720792245694,-690.95,0.00013698,2]
[331844587,1720792245703,-500.0,0.00013698,2]
[331844588,1720792245712,-500.0,0.00013698,2]
[331844590,1720792245724,-500.0,0.00013698,2]
[331844592,1720792245732,-542.02,0.00013698,2]
[331844594,1720792245742,-500.0,0.00013698,2]
[331844596,1720792245751,-827.7,0.00013698,2]
[331844598,1720792245760,-500.0,0.00013698,2]
[331844600,1720792245769,-503.09414396,0.00013698,2]
[331844602,1720792245779,-500.0,0.00013698,2]
[331844604,1720792245788,-500.0,0.00013698,2]
[331844606,1720792245797,-500.0,0.00013698,2]
[331844609,1720792245807,-284.82789213,0.00013698,2]
[331844610,1720792245816,-500.0,0.00013698,2]
[331844612,1720792245825,-500.0,0.00013698,2]
[331844614,1720792245835,-925.51,0.00013698,2]
[331844616,1720792245843,-1132.7,0.00013698,2]
[331844618,1720792245853,-500.0,0.00013698,2]
[331844620,1720792245862,-500.0,0.00013698,2]
[331844622,1720792245871,-500.0,0.00013698,2]
[331844624,1720792245881,-500.0,0.00013698,2]
[331844625,1720792245890,-500.0,0.00013698,2]
[331844627,1720792245899,-500.0,0.00013698,2]
[331844629,1720792245908,-500.0,0.00013698,2]
[331844631,1720792245917,-500.0,0.00013698,2]
[331844633,1720792245927,-831.12,0.00013698,2]
[331844635,1720792245936,-500.0,0.00013698,2]
[331844637,1720792245946,-500.0,0.00013698,2]
[331844639,1720792245955,-500.0,0.00013698,2]
[331844640,1720792245964,-500.0,0.00013698,2]
[331844642,1720792245974,-500.0,0.00013698,2]
[331844644,1720792245983,-500.0,0.00013698,2]
[331844646,1720792245992,-500.0,0.00013698,2]
[331844648,1720792246001,-500.0,0.00013698,2]
[331844650,1720792246010,-500.0,0.00013698,2]
[331844651,1720792246019,-500.0,0.00013698,2]
[331844653,1720792246029,-782.02,0.00013698,2]
[331844655,1720792246038,-500.0,0.00013698,2]
[331844657,1720792246047,-500.0,0.00013698,2]
[331844659,1720792246056,-500.0,0.00013698,2]
[331844661,1720792246065,-551.2864232,0.00013698,2]
[331844663,1720792246075,-500.0,0.00013698,2]
[331844665,1720792246087,-564.04,0.00013698,2]
[331844667,1720792246097,-786.83,0.00013698,2]
[331844669,1720792246106,-500.0,0.00013698,2]
[331844671,1720792246116,-469.56,0.00013698,2]
[331844673,1720792246126,-500.0,0.00013698,2]
[331844675,1720792246136,-500.0,0.00013698,2]
[331844677,1720792246147,-500.0,0.00013698,2]
[331844679,1720792246156,-500.0,0.00013698,2]
[331844681,1720792246166,-500.0,0.00013698,2]
[331844683,1720792246175,-500.0,0.00013698,2]
[331844685,1720792246184,-500.0,0.00013698,2]
[331844687,1720792246195,-500.0,0.00013698,2]
[331844690,1720792246205,-500.0,0.00013698,2]
[331844693,1720792246214,-615.77,0.00013698,2]
[331844696,1720792246223,-500.0,0.00013698,2]
[331844699,1720792246233,-500.0,0.00013698,2]
[331844702,1720792246243,-500.0,0.00013698,2]
[331844705,1720792246252,-500.0,0.00013698,2]
[331844708,1720792246261,-500.0,0.00013698,2]
[331844710,1720792246270,-500.0,0.00013698,2]
[331844713,1720792246280,-500.0,0.00013698,2]
[331844717,1720792246289,-500.0,0.00013698,2]
[331844719,1720792246298,-500.0,0.00013698,2]
[331844723,1720792246307,-907.91,0.00013698,2]
[331844726,1720792246318,-507.95,0.00013698,2]
[331844727,1720792246329,-500.0,0.00013698,2]
[331844734,1720792246339,-500.0,0.00013698,2]
[331844737,1720792246348,-1275.51,0.00013698,2]
[331844740,1720792246358,-500.0,0.00013698,2]
[331844742,1720792246367,-1054.3,0.00013698,2]
[331844745,1720792246376,-500.0,0.00013698,2]
[331844748,1720792246386,-500.0,0.00013698,2]
[331844751,1720792246398,-500.0,0.00013698,2]
[331844754,1720792246408,-805.17,0.00013698,2]
[331844757,1720792246417,-1423.08,0.00013698,2]
[331844760,1720792246428,-500.0,0.00013698,2]
[331844763,1720792246441,-500.0,0.00013698,2]
[331844766,1720792246451,-500.0,0.00013698,2]
[331844769,1720792246461,-500.0,0.00013698,2]
[331844772,1720792246470,-500.0,0.00013698,2]
[331844775,1720792246480,-500.0,0.00013698,2]
[331844778,1720792246490,-587.51,0.00013698,2]
[331844781,1720792246500,-650.15,0.00013698,2]
[331844783,1720792246510,-500.0,0.00013698,2]
[331844785,1720792246519,-500.0,0.00013698,2]
[331844787,1720792246529,-618.12,0.00013698,2]
[331844789,1720792246539,-500.0,0.00013698,2]
[331844791,1720792246549,-500.0,0.00013698,2]
[331844793,1720792246558,-500.0,0.00013698,2]
[331844795,1720792246567,-600.88,0.00013698,2]
[331844797,1720792246577,-500.0,0.00013698,2]
[331844799,1720792246587,-500.0,0.00013698,2]
[331844801,1720792246596,-500.0,0.00013698,2]
[331844804,1720792246606,-500.0,0.00013698,2]
[331844805,1720792246615,-1013.71,0.00013698,2]
[331844808,1720792246625,-500.0,0.00013698,2]
[331844810,1720792246635,-501.50464805,0.00013698,2]
[331844812,1720792246645,-500.0,0.00013698,2]
[331844814,1720792246655,-500.0,0.00013698,2]
[331844816,1720792246664,-500.0,0.00013698,2]
[331844818,1720792246673,-500.0,0.00013698,2]
[331844820,1720792246682,-1327.09,0.00013698,2]
[331844821,1720792246694,-500.0,0.00013698,2]
[331844824,1720792246703,-500.0,0.00013698,2]
[331844826,1720792246713,-771.84,0.00013698,2]
[331844828,1720792246722,-855.59,0.00013698,2]
[331844830,1720792246732,-500.0,0.00013698,2]
[331844832,1720792246742,-500.0,0.00013698,2]
[331844834,1720792246752,-500.0,0.00013698,2]
[331844836,1720792246762,-500.0,0.00013698,2]
[331844838,1720792246771,-559.04,0.00013698,2]
[331844839,1720792246780,-500.0,0.00013698,2]
[331844841,1720792246790,-500.0,0.00013698,2]
[331844843,1720792246799,-500.0,0.00013698,2]
[331844845,1720792246809,-500.0,0.00013698,2]
[331844847,1720792246818,-500.0,0.00013698,2]
[331844849,1720792246828,-507.99,0.00013698,2]
[331844851,1720792246838,-523.1,0.00013698,2]
[331844854,1720792246847,-658.29,0.00013698,2]
[331844855,1720792246856,-500.0,0.00013698,2]
[331844857,1720792246866,-531.03,0.00013698,2]
[331844859,1720792246875,-1129.11,0.00013698,2]
[331844861,1720792246885,-1146.38,0.00013698,2]
[331844863,1720792246894,-500.0,0.00013698,2]
[331844865,1720792246903,-1201.12,0.00013698,2]
[331844867,1720792246914,-500.0,0.00013698,2]
[331844869,1720792246923,-675.11,0.00013698,2]
[331844871,1720792246932,-1071.03,0.00013698,2]
[331844873,1720792246944,-651.12,0.00013698,2]
[331844875,1720792246953,-500.0,0.00013698,2]
[331844877,1720792246963,-500.0,0.00013698,2]
[331844879,1720792246972,-501.7,0.00013698,2]
[331844881,1720792246982,-787.99,0.00013698,2]
[331844883,1720792246991,-500.0,0.00013698,2]
[331844885,1720792247001,-500.0,0.00013698,2]
[331844887,1720792247010,-615.82,0.00013698,2]
[331844889,1720792247019,-692.65,0.00013698,2]
[331844891,1720792247029,-1127.88,0.00013698,2]
[331844893,1720792247038,-500.0,0.00013698,2]
[331844895,1720792247047,-730.76,0.00013698,2]
[331844897,1720792247057,-500.0,0.00013698,2]
[331844899,1720792247066,-843.03,0.00013698,2]
[331844901,1720792247076,-500.0,0.00013698,2]
[331844903,1720792247085,-500.0,0.00013698,2]
[331844905,1720792247095,-989.33,0.00013698,2]
[331844907,1720792247104,-2332.69,0.00013698,2]
[331844909,1720792247114,-763.9,0.00013698,2]
[331844911,1720792247123,-500.0,0.00013698,2]
[331844913,1720792247132,-500.0,0.00013698,2]
[331844915,1720792247142,-500.0,0.00013698,2]
[331844917,1720792247152,-500.0,0.00013698,2]
[331844919,1720792247162,-500.0,0.00013698,2]
[331844921,1720792247171,-500.0,0.00013698,2]
[331844923,1720792247181,-500.0,0.00013698,2]
[331844925,1720792247192,-849.43,0.00013698,2]
[331844927,1720792247201,-500.0,0.00013698,2]
[331844929,1720792247210,-500.0,0.00013698,2]
[331844931,1720792247219,-1585.14,0.00013698,2]
[331844933,1720792247230,-500.0,0.00013698,2]
[331844935,1720792247239,-288.4572936,0.00013698,2]
[331844937,1720792247248,-500.0,0.00013698,2]
[331844939,1720792247258,-500.0,0.00013698,2]
[331844941,1720792247267,-500.0,0.00013698,2]
[331844943,1720792247276,-500.0,0.00013698,2]
[331844945,1720792247286,-1413.05,0.00013698,2]
[331844947,1720792247295,-371.34517552,0.00013698,2]
[331844949,1720792247305,-4524.93,0.00013698,2]
[331844951,1720792247314,-500.0,0.00013698,2]
[331844953,1720792247328,-522.41,0.00013698,2]
[331844955,1720792247337,-500.0,0.00013698,2]
[331844957,1720792247347,-500.0,0.00013698,2]
[331844959,1720792247357,-500.0,0.00013698,2]
[331844961,1720792247367,-500.0,0.00013698,2]
[331844963,1720792247377,-500.0,0.00013698,2]
[331844965,1720792247387,-914.63,0.00013698,2]
[331844967,1720792247397,-500.0,0.00013698,2]
[331844969,1720792247407,-941.86,0.00013698,2]
[331844971,1720792247417,-605.05,0.00013698,2]
[331844973,1720792247426,-1218.2,0.00013698,2]
[331844974,1720792247435,-500.0,0.00013698,2]
[331844975,1720792247447,-500.0,0.00013698,2]
[331844976,1720792247456,-605.68,0.00013698,2]
[331844977,1720792247466,-500.0,0.00013698,2]
[331844978,1720792247475,-500.0,0.00013698,2]
[331844979,1720792247485,-500.0,0.00013698,2]
[331844980,1720792247494,-500.0,0.00013698,2]
[331844981,1720792247503,-500.0,0.00013698,2]
[331844982,1720792247513,-500.0,0.00013698,2]
[331844983,1720792247523,-850.86,0.00013698,2]
[331844984,1720792247532,-500.0,0.00013698,2]
[331844985,1720792247541,-1130.35,0.00013698,2]
[331844986,1720792247551,-500.0,0.00013698,2]
[331844987,1720792247560,-1947.99,0.00013698,2]
[331844989,1720792247569,-500.0,0.00013698,2]
[331844991,1720792247578,-500.0,0.00013698,2]
[331844993,1720792247588,-500.0,0.00013698,2]
[331844995,1720792247597,-691.84,0.00013698,2]
[331844997,1720792247607,-500.0,0.00013698,2]
[331844999,1720792247616,-500.0,0.00013698,2]
[331845001,1720792247625,-926.46,0.00013698,2]
[331845003,1720792247634,-500.0,0.00013698,2]
[331845005,1720792247643,-500.0,0.00013698,2]
[331845007,1720792247654,-584.64,0.00013698,2]
[331845009,1720792247663,-500.0,0.00013698,2]
[331845011,1720792247673,-1161.01,0.00013698,2]
[331845013,1720792247682,-863.79,0.00013698,2]
[331845015,1720792247694,-500.0,0.00013698,2]
[331845017,1720792247703,-1314.17,0.00013698,2]
[331845019,1720792247712,-500.0,0.00013698,2]
[331845021,1720792247721,-500.0,0.00013698,2]
[331845023,1720792247731,-286.56541316,0.00013698,2]
[331845025,1720792247740,-500.1,0.00013698,2]
[331845027,1720792247749,-500.0,0.00013698,2]
[331845029,1720792247758,-500.0,0.00013698,2]
[331845031,1720792247768,-1058.99,0.00013698,2]
[331845033,1720792247777,-500.0,0.00013698,2]
[331845034,1720792247787,-972.32,0.00013698,2]
[331845037,1720792247796,-500.0,0.00013698,2]
[331845039,1720792247806,-610.24,0.00013698,2]
[331845041,1720792247815,-500.0,0.00013698,2]
[331845043,1720792247824,-753.07,0.00013698,2]
[331845045,1720792247833,-533.91,0.00013698,2]
[331845046,1720792247843,-618.34,0.00013698,2]
[331845048,1720792247853,-500.0,0.00013698,2]
[331845050,1720792247863,-500.0,0.00013698,2]
[331845052,1720792247872,-500.0,0.00013698,2]
[331845054,1720792247881,-500.0,0.00013698,2]
[331845056,1720792247891,-559.04,0.00013698,2]
[331845058,1720792247900,-500.0,0.00013698,2]
[331845060,1720792247910,-1105.24,0.00013698,2]
[331845062,1720792247920,-500.0,0.00013698,2]
[331845064,1720792247929,-597.99,0.00013698,2]
[331845066,1720792247942,-1021.23,0.00013698,2]
[331845068,1720792247952,-496.14849994,0.00013698,2]
[331845070,1720792247962,-1003.48,0.00013698,2]
[331845073,1720792247971,-849.5,0.00013698,2]
[331845074,1720792247980,-500.0,0.00013698,2]
[331845076,1720792247990,-500.0,0.00013698,2]
[331845078,1720792247999,-500.0,0.00013698,2]
[331845080,1720792248009,-1183.86,0.00013698,2]
[331845082,1720792248018,-500.0,0.00013698,2]
[331845084,1720792248027,-500.0,0.00013698,2]
[331845086,1720792248036,-500.0,0.00013698,2]
[331845088,1720792248046,-722.33,0.00013698,2]
[331845091,1720792248056,-675.63,0.00013698,2]
[331845093,1720792248066,-628.11,0.00013698,2]
[331845095,1720792248076,-500.0,0.00013698,2]
[331845097,1720792248085,-500.0,0.00013698,2]
[331845099,1720792248096,-1104.31,0.00013698,2]
[331845101,1720792248105,-1407.38,0.00013698,2]
[331845103,1720792248115,-500.0,0.00013698,2]
[331845105,1720792248124,-500.0,0.00013698,2]
[331845107,1720792248133,-500.0,0.00013698,2]
[331845108,1720792248142,-893.34,0.00013698,2]
[331845111,1720792248152,-500.0,0.00013698,2]
[331845113,1720792248162,-500.0,0.00013698,2]
[331845114,1720792248171,-500.0,0.00013698,2]
[331845117,1720792248181,-543.64,0.00013698,2]
[331845119,1720792248193,-852.51,0.00013698,2]
[331845121,1720792248203,-500.0,0.00013698,2]
[331845123,1720792248212,-500.0,0.00013698,2]
[331845125,1720792248222,-500.0,0.00013698,2]
[331845127,1720792248231,-500.0,0.00013698,2]
[331845129,1720792248241,-898.22,0.00013698,2]
[331845130,1720792248250,-500.0,0.00013698,2]
[331845133,1720792248261,-731.66,0.00013698,2]
[331845134,1720792248270,-557.72,0.00013698,2]
[331845137,1720792248280,-500.0,0.00013698,2]